bitfinex-derivatives/quotes_BNBF0:USTF0_20230830
["timestamp","ask_amount","ask_price","bid_price","bid_amount"]
[1693418207039,0.07353654,222.59,222.38,0.07344343]
[1693418207341,0.07353654,222.59,222.39,0.82550258]
[1693418208342,0.07353654,222.6,222.39,0.82550258]
[1693418209143,0.07353654,222.59,222.39,0.82550258]
[1693418209442,0.07353654,222.6,222.39,0.82550258]
[1693418212640,0.07353654,222.6,222.37,0.07344343]
[1693418212846,0.07353654,222.6,222.38,0.82560716]
[1693418216546,0.07353654,222.59,222.38,0.82560716]
[1693418217348,0.07353654,222.6,222.38,0.82560716]
[1693418218350,0.07353654,222.6,222.39,0.82560716]
[1693418218543,0.07353654,222.6,222.36,0.07344343]
[1693418218748,0.07353654,222.6,222.37,0.82568887]
[1693418220149,0.07353654,222.59,222.37,0.82568887]
[1693418221950,0.07353654,222.6,222.37,0.82568887]
[1693418222147,0.07353654,222.59,222.37,0.82568887]
[1693418223453,0.07353654,222.6,222.37,0.82568887]
[1693418228255,0.07353654,222.59,222.37,0.82568887]
[1693418228454,0.07353654,222.6,222.37,0.82568887]
[1693418229255,0.07353654,222.59,222.37,0.82568887]
[1693418230657,0.07353654,222.6,222.37,0.82568887]
[1693418234154,0.07353654,222.6,222.37,0.8991323]
[1693418234356,0.07353654,222.6,222.38,0.82568887]
[1693418239254,0.07353654,222.59,222.38,0.82568887]
[1693418240158,0.07353654,222.59,222.38,0.8991323]
[1693418240357,0.07353654,222.59,222.39,0.82568887]
[1693418245661,0.07353654,222.58,222.39,0.82568887]
[1693418245864,0.07353654,222.58,222.37,0.07344343]
[1693418246066,0.07353654,222.58,222.38,0.82570032]
[1693418248368,0.07353654,222.58,222.38,0.89914375]
[1693418248569,0.07353654,222.58,222.39,0.82570032]
[1693418248969,0.07353654,222.59,222.39,0.82570032]
[1693418250473,0.07353654,222.58,222.37,0.07344343]
[1693418250670,0.07353654,222.58,222.38,0.82569558]
[1693418251373,0.07353654,222.58,222.38,0.89913901]
[1693418251570,0.07353654,222.59,222.39,0.82569558]
[1693418255777,0.07353654,222.58,222.39,0.82569558]
[1693418255977,0.07353654,222.58,222.37,0.07344343]
[1693418256177,0.07353654,222.58,222.38,0.82572938]
[1693418256576,0.07353654,222.57,222.38,0.82572938]
[1693418256777,0.07353654,222.58,222.37,0.07344343]
[1693418256978,0.07353654,222.57,222.38,0.82574874]
[1693418257273,0.07353654,222.57,222.36,0.07344343]
[1693418257478,0.07353654,222.58,222.37,0.82574975]
[1693418257672,0.07353654,222.57,222.37,0.82574975]
[1693418258577,0.07353654,222.58,222.37,0.82574975]
[1693418258777,0.14707309,222.6,222.37,0.82574975]
[1693418258778,0.07353654,222.57,222.37,0.82574975]
[1693418259478,0.07353654,222.58,222.37,0.82574975]
[1693418260781,0.07353654,222.58,222.35,0.07344343]
[1693418260981,0.07353654,222.58,222.36,0.82576298]
[1693418270985,0.07353654,222.59,222.36,0.82576298]
[1693418277992,0.07353654,222.58,222.36,0.82576298]
[1693418280492,0.07353654,222.58,222.36,0.89920641]
[1693418280690,0.07353654,222.58,222.37,0.82576298]
[1693418281089,0.07353654,222.58,222.36,0.89920641]
[1693418281293,0.07353654,222.58,222.37,0.82575813]
[1693418281988,0.07353654,222.58,222.35,0.07344343]
[1693418282190,0.07353654,222.58,222.36,0.82576619]
[1693418284595,0.07353654,222.53,222.3,0.07344343]
[1693418284896,0.07353654,222.54,222.31,0.82599506]
[1693418285090,0.07353654,222.54,222.29,0.07344343]
[1693418285091,0.07353654,222.54,222.3,0.82599506]
[1693418285297,0.07353654,222.54,222.31,0.82599506]
[1693418285498,0.07353654,222.54,222.3,0.82599506]
[1693418285698,0.07353654,222.54,222.31,0.82599506]
[1693418285902,0.07353654,222.55,222.3,0.82599506]
[1693418286199,0.07353654,222.55,222.31,0.82599506]
[1693418286395,0.07353654,222.55,222.29,0.82599506]
[1693418286700,0.07353654,222.55,222.3,0.82599506]
[1693418286900,0.07353654,222.56,222.29,0.82599506]
[1693418287101,0.07353654,222.56,222.3,0.82599506]
[1693418287302,0.07353654,222.56,222.28,0.82599506]
[1693418287601,0.07353654,222.56,222.29,0.82599506]
[1693418287803,0.07353654,222.56,222.3,0.82599506]
[1693418288002,0.07353654,222.56,222.31,0.82599506]
[1693418288203,0.07353654,222.56,222.32,0.82599506]
[1693418288395,0.07353654,222.56,222.27,0.07344343]
[1693418288599,0.07353654,222.56,222.28,0.82599431]
[1693418289001,0.07353654,222.56,222.29,0.82599431]
[1693418289205,0.07353654,222.56,222.3,0.82599431]
[1693418289401,0.07353654,222.56,222.27,0.82599431]
[1693418289602,0.07353654,222.56,222.28,0.82599431]
[1693418289799,0.07353654,222.56,222.29,0.82599431]
[1693418290103,0.07353654,222.57,222.3,0.82599431]
[1693418290300,0.07353654,222.57,222.27,0.82599431]
[1693418290505,0.07353654,222.57,222.28,0.82599431]
[1693418290705,0.07353654,222.57,222.29,0.82599431]
[1693418291006,0.07353654,222.57,222.3,0.82599431]
[1693418291205,0.07353654,222.57,222.31,0.82599431]
[1693418291405,0.07353654,222.57,222.32,0.82599431]
[1693418291606,0.07353654,222.57,222.26,0.07344343]
[1693418291906,0.07353654,222.57,222.19,0.14688686]
[1693418291907,0.07353654,222.57,222.27,0.8259981]
[1693418292101,0.07353654,222.57,222.28,0.8259981]
[1693418292303,0.07353654,222.57,222.29,0.8259981]
[1693418292500,0.07353654,222.57,222.3,0.8259981]
[1693418292803,0.07353654,222.57,222.31,0.8259981]
[1693418293000,0.07353654,222.57,222.32,0.8259981]
[1693418293199,0.07353654,222.57,222.25,0.07344343]
[1693418293499,0.07353654,222.57,222.26,0.82599512]
[1693418294005,0.07353654,222.58,222.26,0.82599512]
[1693418294606,0.07353654,222.58,222.25,0.82599512]
[1693418294807,0.07353654,222.58,222.26,0.82599512]
[1693418295006,0.07353654,222.58,222.25,0.82599512]
[1693418295202,0.07353654,222.58,222.26,0.82599512]
[1693418295415,0.07353654,222.58,222.25,0.82599512]
[1693418295608,0.07353654,222.58,222.26,0.82599512]
[1693418295906,0.07353654,222.58,222.27,0.82599512]
[1693418296106,0.07353654,222.58,222.28,0.82599512]
[1693418296307,0.07353654,222.58,222.25,0.82599512]
[1693418296606,0.07353654,222.58,222.26,0.82599512]
[1693418296805,0.07353654,222.58,222.25,0.82599512]
[1693418297401,0.07353654,222.58,222.26,0.82599512]
[1693418297601,0.07353654,222.58,222.27,0.82599512]
[1693418297802,0.07353654,222.58,222.25,0.82599512]
[1693418298001,0.07353654,222.58,222.26,0.82599512]
[1693418298204,0.07353654,222.58,222.25,0.82599512]
[1693418298402,0.07353654,222.58,222.24,0.07344343]
[1693418298403,0.07353654,222.58,222.26,0.82599512]
[1693418298603,0.07353654,222.58,222.25,0.82599512]
[1693418298807,0.07353654,222.58,222.26,0.82599512]
[1693418299403,0.07353654,222.58,222.25,0.82599512]
[1693418299609,0.07353654,222.58,222.26,0.82599512]
[1693418299802,0.07353654,222.58,222.24,0.82599512]
[1693418300006,0.07353654,222.58,222.25,0.82599512]
[1693418300204,0.07353654,222.58,222.26,0.82599512]
[1693418300510,0.07353654,222.58,222.27,0.82599512]
[1693418300805,0.07353654,222.58,222.28,0.82599512]
[1693418301004,0.07353654,222.58,222.24,0.82599512]
[1693418301209,0.07353654,222.58,222.25,0.82599512]
[1693418301509,0.07353654,222.58,222.26,0.82599512]
[1693418301711,0.07353654,222.58,222.24,0.82599512]
[1693418301911,0.07353654,222.58,222.25,0.82599512]
[1693418303211,0.07353654,222.59,222.25,0.82599512]
[1693418304112,0.07353654,222.58,222.25,0.82599512]
[1693418305412,0.07353654,222.59,222.25,0.89943855]
[1693418305614,0.07353654,222.59,222.26,0.82599512]
[1693418306509,0.07353654,222.58,222.26,0.82599512]
[1693418306916,0.07353654,222.58,222.27,0.82599512]
[1693418307116,0.07353654,222.58,222.25,0.07344343]
[1693418307117,0.07353654,222.58,222.26,0.82599512]
[1693418307320,0.07353654,222.58,222.27,0.82599512]
[1693418307617,0.07353654,222.58,222.28,0.82599512]
[1693418307814,0.07353654,222.58,222.29,0.82599512]
[1693418308021,0.07353654,222.58,222.26,0.82599512]
[1693418308314,0.07353654,222.58,222.27,0.82599512]
[1693418308520,0.07353654,222.58,222.28,0.82599512]
[1693418308713,0.07353654,222.58,222.26,0.82599512]
[1693418308913,0.07353654,222.58,222.27,0.82599512]
[1693418309814,0.07353654,222.57,222.27,0.82599512]
[1693418310221,0.07353654,222.58,222.27,0.82599512]
[1693418310415,0.07353654,222.57,222.27,0.82599512]
[1693418311018,0.07353654,222.57,222.27,0.89943855]
[1693418311220,0.07353654,222.57,222.28,0.82599512]
[1693418311521,0.07353654,222.57,222.26,0.07344343]
[1693418311522,0.07353654,222.56,222.29,0.82599512]
[1693418311721,0.07353654,222.56,222.3,0.82599512]
[1693418311922,0.07353654,222.56,222.26,0.07344343]
[1693418311923,0.07353654,222.56,222.31,0.82599512]
[1693418312120,0.07353654,222.56,222.27,0.82599512]
[1693418312320,0.07353654,222.56,222.28,0.82599512]
[1693418312620,0.07353654,222.56,222.29,0.82599512]
[1693418312821,0.07353654,222.56,222.27,0.82599512]
[1693418313022,0.07353654,222.56,222.28,0.82599512]
[1693418313222,0.07353654,222.56,222.29,0.82599512]
[1693418313423,0.07353654,222.55,222.3,0.82599512]
[1693418313629,0.07353654,222.55,222.28,0.82599512]
[1693418313821,0.07353654,222.55,222.29,0.82599512]
[1693418314019,0.07353654,222.55,222.3,0.82599512]
[1693418314324,0.07353654,222.55,222.31,0.82599512]
[1693418314522,0.07353654,222.55,222.32,0.82599512]
[1693418314718,0.07353654,222.55,222.28,0.07344343]
[1693418314918,0.07353654,222.55,222.29,0.82599194]
[1693418316827,0.07353654,222.54,222.29,0.82599194]
[1693418317523,0.07353654,222.54,222.29,0.89943537]
[1693418317825,0.07353654,222.53,222.3,0.82599194]
[1693418318619,0.07353654,222.54,222.3,0.82599194]
[1693418318927,0.07353654,222.52,222.31,0.07344343]
[1693418319128,0.07353654,222.52,222.32,0.82599194]
[1693418321127,0.07353654,222.5,222.29,0.07344343]
[1693418321327,0.07353654,222.5,222.3,0.8260733]
[1693418321530,0.07353654,222.49,222.3,0.8260733]
[1693418321825,0.07353654,222.5,222.28,0.07344343]
[1693418322023,0.07353654,222.5,222.29,0.8260717]
[1693418323929,0.07353654,222.51,222.29,0.8260717]
[1693418326633,0.07353654,222.51,222.3,0.8260717]
[1693418326826,0.07353654,222.51,222.27,0.07344343]
[1693418327027,0.07353654,222.51,222.28,0.8260525]
[1693418327231,0.07353654,222.51,222.28,0.89949593]
[1693418327434,0.07353654,222.51,222.29,0.8260525]
[1693418327829,0.07353654,222.51,222.3,0.8260525]
[1693418328030,0.07353654,222.51,222.27,0.07344343]
[1693418328233,0.07353654,222.51,222.28,0.82605162]
[1693418331836,0.07353654,222.52,222.28,0.82605162]
[1693418336836,0.07353654,222.52,222.27,0.82605162]
[1693418337035,0.07353654,222.52,222.28,0.82605162]
[1693418337233,0.07353654,222.52,222.29,0.82605162]
[1693418337435,0.07353654,222.52,222.27,0.82605162]
[1693418337632,0.07353654,222.52,222.28,0.82605162]
[1693418339538,0.07353654,222.53,222.28,0.82605162]
[1693418340037,0.07353654,222.52,222.28,0.82605162]
[1693418340241,0.07353654,222.53,222.28,0.82605162]
[1693418340940,0.07353654,222.52,222.28,0.82605162]
[1693418341339,0.07353654,222.53,222.28,0.82605162]
[1693418341534,0.07353654,222.52,222.28,0.82605162]
[1693418342041,0.07353654,222.53,222.28,0.82605162]
[1693418342540,0.07353654,222.52,222.28,0.82605162]
[1693418348846,0.07353654,222.52,222.28,0.89949505]
[1693418349043,0.07353654,222.52,222.29,0.82605162]
[1693418351246,0.07353654,222.51,222.29,0.82605162]
[1693418351546,0.07353654,222.52,222.29,0.82605162]
[1693418351746,0.07353654,222.51,222.29,0.82605162]
[1693418353845,0.07353654,222.51,222.29,0.89949505]
[1693418354048,0.07353654,222.51,222.3,0.82605162]
[1693418355951,0.07353654,222.5,222.3,0.82605162]
[1693418363457,0.07353654,222.5,222.3,0.89949505]
[1693418363651,0.07353654,222.5,222.31,0.82605162]
[1693418363853,0.07353654,222.5,222.3,0.82605162]
[1693418364052,0.07353654,222.5,222.31,0.82600462]
[1693418369852,0.07353654,222.51,222.31,0.82600462]
[1693418375260,0.07353654,222.52,222.31,0.82600462]
[1693418381360,0.07353654,222.51,222.31,0.82600462]
[1693418381565,0.07353654,222.51,222.29,0.07344343]
[1693418381762,0.07353654,222.51,222.3,0.82600909]
[1693418383865,0.07353654,222.52,222.3,0.89945252]
[1693418384068,0.07353654,222.57,222.35,0.07344343]
[1693418384269,0.07353654,222.57,222.36,0.82600909]
[1693418384769,0.07353654,222.57,222.36,0.89945252]
[1693418384967,0.07353654,222.57,222.37,0.82600909]
[1693418385168,0.07353654,222.59,222.37,0.82600909]
[1693418385468,0.07353654,222.59,222.34,0.07344343]
[1693418385769,0.07353654,222.59,222.35,0.82575454]
[1693418386067,0.07353654,222.6,222.35,0.82575454]
[1693418386268,0.07353654,222.6,222.34,0.82575454]
[1693418386468,0.07353654,222.6,222.35,0.82575454]
[1693418386663,0.07353654,222.6,222.34,0.82575454]
[1693418386861,0.07353654,222.61,222.36,0.82575454]
[1693418387069,0.07353654,222.61,222.37,0.82575454]
[1693418387267,0.07353654,222.61,222.33,0.82575454]
[1693418388172,0.07353654,222.61,222.32,0.82575454]
[1693418388471,0.07353654,222.61,222.33,0.82575454]
[1693418388670,0.07353654,222.61,222.32,0.82575454]
[1693418388869,0.07353654,222.61,222.33,0.82575454]
[1693418389070,0.07353654,222.62,222.34,0.82575454]
[1693418389372,0.07353654,222.62,222.35,0.82575454]
[1693418389670,0.07353654,222.62,222.36,0.82575454]
[1693418389872,0.07353654,222.62,222.32,0.82575454]
[1693418390069,0.07353654,222.62,222.33,0.82575454]
[1693418390370,0.07353654,222.62,222.34,0.82575454]
[1693418390573,0.07353654,222.62,222.35,0.82575454]
[1693418390768,0.07353654,222.62,222.36,0.82575454]
[1693418390965,0.07353654,222.63,222.37,0.82575454]
[1693418391166,0.07353654,222.63,222.31,0.82575454]
[1693418391366,0.07353654,222.63,222.32,0.82575292]
[1693418391671,0.07353654,222.63,222.33,0.82575292]
[1693418391868,0.07353654,222.63,222.34,0.82575292]
[1693418392073,0.07353654,222.63,222.35,0.82575292]
[1693418392274,0.07353654,222.63,222.31,0.82575292]
[1693418392474,0.07353654,222.63,222.32,0.82575292]
[1693418392673,0.07353654,222.63,222.31,0.82575292]
[1693418392868,0.07353654,222.63,222.3,0.07344343]
[1693418392869,0.07353654,222.63,222.32,0.82575292]
[1693418393075,0.07353654,222.63,222.33,0.82575292]
[1693418393275,0.07353654,222.63,222.34,0.82575292]
[1693418393475,0.07353654,222.63,222.35,0.82575292]
[1693418393674,0.07353654,222.63,222.36,0.82575292]
[1693418393874,0.07353654,222.63,222.31,0.82575292]
[1693418394074,0.07353654,222.63,222.32,0.82575292]
[1693418394270,0.07353654,222.63,222.33,0.82575292]
[1693418394474,0.07353654,222.63,222.34,0.82575292]
[1693418394673,0.07353654,222.63,222.35,0.82575292]
[1693418394873,0.07353654,222.63,222.36,0.82575292]
[1693418395075,0.07353654,222.63,222.3,0.82575292]
[1693418395276,0.07353654,222.63,222.31,0.82575292]
[1693418395572,0.07353654,222.63,222.32,0.82575292]
[1693418395771,0.07353654,222.63,222.3,0.82575292]
[1693418395976,0.07353654,222.64,222.31,0.82575292]
[1693418396178,0.07353654,222.64,222.3,0.82575292]
[1693418396377,0.07353654,222.64,222.31,0.82575292]
[1693418396571,0.07353654,222.64,222.3,0.82575292]
[1693418396775,0.07353654,222.64,222.31,0.82575292]
[1693418396984,0.07353654,222.64,222.3,0.82575292]
[1693418397175,0.07353654,222.64,222.31,0.82575292]
[1693418397376,0.07353654,222.64,222.3,0.82575292]
[1693418397576,0.07353654,222.64,222.31,0.82575292]
[1693418397780,0.07353654,222.64,222.3,0.82575292]
[1693418397980,0.07353654,222.64,222.31,0.82575292]
[1693418398176,0.07353654,222.64,222.3,0.82575292]
[1693418398479,0.07353654,222.64,222.31,0.82575292]
[1693418398679,0.07353654,222.64,222.32,0.82575292]
[1693418398880,0.07353654,222.64,222.33,0.82575292]
[1693418399082,0.07353654,222.64,222.34,0.82575292]
[1693418399284,0.07353654,222.64,222.35,0.82575292]
[1693418399482,0.07353654,222.64,222.36,0.82575292]
[1693418399682,0.07353654,222.63,222.37,0.82575292]
[1693418399879,0.07353654,222.63,222.29,0.07344343]
[1693418399880,0.07353654,222.63,222.28,0.07344343]
[1693418400179,0.07353654,222.63,222.29,0.89920679]
[1693418400384,0.07353654,222.63,222.3,0.82576336]
[1693418400580,0.07353654,222.63,222.29,0.82576336]
[1693418400786,0.07353654,222.63,222.29,0.89920679]
[1693418401084,0.07353654,222.63,222.3,0.82576336]
[1693418401284,0.07353654,222.63,222.29,0.82576336]
[1693418401487,0.07353654,222.63,222.3,0.82576336]
[1693418401679,0.07353654,222.63,222.29,0.82576336]
[1693418401877,0.07353654,222.63,222.3,0.82576336]
[1693418402478,0.07353654,222.63,222.29,0.82576336]
[1693418402685,0.07353654,222.63,222.3,0.82576336]
[1693418402881,0.07353654,222.63,222.29,0.82576336]
[1693418403085,0.07353654,222.63,222.3,0.82576336]
[1693418404681,0.07353654,222.7,222.36,0.07344343]
[1693418404986,0.07353654,222.7,222.3,0.97265022]
[1693418404987,0.07353654,222.72,222.38,0.07344343]
[1693418405187,0.07353654,222.74,222.39,0.82576336]
[1693418405387,0.07353654,222.74,222.38,0.82576336]
[1693418405583,0.07353654,222.74,222.39,0.82576336]
[1693418405784,0.07353654,222.74,222.38,0.82576336]
[1693418405982,0.07353654,222.74,222.39,0.82576336]
[1693418406184,0.07353654,222.74,222.37,0.82576336]
[1693418406387,0.07353654,222.75,222.38,0.82576336]
[1693418406587,0.07353654,222.75,222.35,0.07344343]
[1693418406588,0.07353654,222.75,222.36,0.82576336]
[1693418407391,0.07353654,222.76,222.36,0.82576336]
[1693418407593,0.07353654,222.75,222.35,0.82576336]
[1693418407790,0.07353654,222.75,222.36,0.82576336]
[1693418407991,0.07353654,222.75,222.35,0.82576336]
[1693418408192,0.07353654,222.76,222.35,0.82576336]
[1693418408391,0.07353654,222.76,222.34,0.82576336]
[1693418408591,0.07353654,222.76,222.35,0.82576336]
[1693418408899,0.07353654,222.76,222.36,0.82576336]
[1693418409086,0.07353654,222.76,222.34,0.82576336]
[1693418410389,0.07353654,222.76,222.35,0.82576336]
[1693418410586,0.07353654,222.76,222.36,0.82576336]
[1693418410785,0.07353654,222.76,222.33,0.82576336]
[1693418410990,0.07353654,222.76,222.34,0.82576336]
[1693418411187,0.07353654,222.76,222.33,0.82576336]
[1693418411393,0.07353654,222.77,222.35,0.82576336]
[1693418411586,0.07353654,222.77,222.36,0.82576336]
[1693418411785,0.07353654,222.77,222.33,0.82576336]
[1693418411989,0.07353654,222.77,222.34,0.82576336]
[1693418412289,0.07353654,222.77,222.35,0.82576336]
[1693418412490,0.07353654,222.77,222.36,0.82576336]
[1693418412687,0.07353654,222.77,222.37,0.82576336]
[1693418412892,0.07353654,222.77,222.33,0.82576336]
[1693418413193,0.07353654,222.77,222.34,0.82576336]
[1693418413394,0.07353654,222.77,222.33,0.82576336]
[1693418413593,0.07353654,222.77,222.34,0.82576336]
[1693418413790,0.07353654,222.77,222.35,0.82576336]
[1693418413991,0.07353654,222.77,222.33,0.82576336]
[1693418414187,0.07353654,222.77,222.34,0.82576336]
[1693418414391,0.07353654,222.77,222.33,0.82576336]
[1693418414591,0.07353654,222.77,222.34,0.82576336]
[1693418414788,0.07353654,222.77,222.33,0.82576336]
[1693418414992,0.07353654,222.76,222.33,0.82576336]
[1693418415294,0.07353654,222.77,222.33,0.82576336]
[1693418416095,0.07353654,222.76,222.33,0.82576336]
[1693418418197,0.07353654,222.75,222.33,0.89920679]
[1693418418390,0.07353654,222.75,222.34,0.82576336]
[1693418419097,0.07353654,222.74,222.34,0.82576336]
[1693418421000,0.07353654,222.75,222.34,0.82576336]
[1693418421300,0.07353654,222.74,222.34,0.82576336]
[1693418426002,0.07353654,222.74,222.34,0.89920679]
[1693418426203,0.07353654,222.74,222.35,0.82576336]
[1693418426603,0.07353654,222.73,222.35,0.82576336]
[1693418426906,0.07353654,222.73,222.36,0.82576336]
[1693418427105,0.07353654,222.73,222.37,0.82576336]
[1693418427298,0.07353654,222.73,222.35,0.82576336]
[1693418427503,0.07353654,222.73,222.36,0.82576336]
[1693418427702,0.07353654,222.73,222.35,0.82576336]
[1693418427902,0.07353654,222.73,222.36,0.82576336]
[1693418428205,0.07353654,222.73,222.37,0.82576336]
[1693418428599,0.07353654,222.73,222.38,0.82576336]
[1693418428800,0.07353654,222.73,222.35,0.82576336]
[1693418429101,0.07353654,222.73,222.36,0.82576336]
[1693418429405,0.07353654,222.73,222.37,0.82576336]
[1693418429705,0.07353654,222.73,222.38,0.82576336]
[1693418429905,0.07353654,222.73,222.36,0.82576336]
[1693418430205,0.07353654,222.73,222.37,0.82576336]
[1693418430408,0.07353654,222.73,222.36,0.82576336]
[1693418430605,0.07353654,222.73,222.11,0.97924576]
[1693418430809,0.07331431,222.73,222.35,0.07335767]
[1693418431008,0.07331431,222.72,222.36,0.82576336]
[1693418432006,0.07331431,222.72,222.36,0.89912103]
[1693418432205,0.07331431,222.72,222.37,0.82576336]
[1693418433006,0.07331431,222.71,222.37,0.82576336]
[1693418434006,0.07331431,222.71,222.37,0.89912103]
[1693418434207,0.07331431,222.71,222.38,0.82576336]
[1693418435110,0.07331431,222.7,222.38,0.89912103]
[1693418435408,0.07331431,222.7,222.39,0.82576336]
[1693418435611,0.07331431,222.7,222.38,0.82576336]
[1693418435806,0.07331431,222.7,222.39,0.82576336]
[1693418436006,0.07331431,222.7,222.4,0.82576336]
[1693418436209,0.07331431,222.69,222.41,0.82576336]
[1693418436408,0.07331431,222.69,222.42,0.82576336]
[1693418436602,0.07331431,222.69,222.43,0.82576336]
[1693418436803,0.07331431,222.69,222.39,0.82576336]
[1693418437006,0.07331431,222.69,222.4,0.82576336]
[1693418437206,0.07331431,222.69,222.39,0.82576336]
[1693418437407,0.07331431,222.68,222.4,0.82576336]
[1693418438004,0.07331431,222.68,222.41,0.82576336]
[1693418438310,0.07331431,222.67,222.42,0.82576336]
[1693418438512,0.07331431,222.67,222.43,0.82576336]
[1693418438810,0.07331431,222.67,222.4,0.07335767]
[1693418438811,0.07331431,222.67,222.44,0.82576336]
[1693418439012,0.07331431,222.67,222.41,0.82576336]
[1693418439213,0.07331431,222.67,222.42,0.82547598]
[1693418439513,0.07331431,222.64,222.43,0.82547598]
[1693418441614,0.07331431,222.64,222.43,0.89883365]
[1693418441809,0.07331431,222.64,222.44,0.82547598]
[1693418442813,0.07331431,222.65,222.44,0.82547598]
[1693418443416,0.07331431,222.64,222.44,0.82547598]
[1693418446623,0.07331431,222.65,222.44,0.89883365]
[1693418446822,0.07331431,222.65,222.45,0.82547598]
[1693418455130,0.07331431,222.64,222.45,0.82547598]
[1693418455325,0.07331431,222.64,222.43,0.07335767]
[1693418455525,0.07331431,222.64,222.44,0.82546324]
[1693418460335,0.07331431,222.65,222.44,0.89882091]
[1693418460533,0.07331431,222.65,222.45,0.82546324]
[1693418461833,0.07331431,222.66,222.45,0.82546324]
[1693418462432,0.07331431,222.67,222.45,0.89882091]
[1693418462633,0.07331431,222.67,222.46,0.82546324]
[1693418464334,0.07331431,222.68,222.46,0.82546324]
[1693418466637,0.07331431,222.68,222.45,0.82546324]
[1693418467440,0.07331431,222.69,222.45,0.82546324]
[1693418472540,0.07331431,222.69,222.44,0.82546324]
[1693418472735,0.07331431,222.69,222.45,0.82546324]
[1693418472939,0.07331431,222.69,222.46,0.82546324]
[1693418473139,0.07331431,222.69,222.47,0.82546324]
[1693418473337,0.07331431,222.69,222.43,0.07335767]
[1693418473538,0.07331431,222.69,222.44,0.82538336]
[1693418476147,0.07331431,222.69,222.44,0.89874103]
[1693418476344,0.07331431,222.69,222.45,0.82538336]
[1693418476539,0.07331431,222.69,222.44,0.89874103]
[1693418476744,0.07331431,222.69,222.45,0.82538336]
[1693418480443,0.07331431,222.68,222.45,0.82538336]
[1693418480639,0.07331431,222.68,222.46,0.82538336]
[1693418480845,0.07331431,222.68,222.43,0.07335767]
[1693418481050,0.07331431,222.68,222.44,0.82541744]
[1693418483348,0.07331431,222.67,222.44,0.82541744]
[1693418493252,0.07331431,222.66,222.44,0.82541744]
[1693418494154,0.07331431,222.66,222.44,0.89877511]
[1693418494351,0.07331431,222.66,222.45,0.82541744]
[1693418495454,0.07331431,222.67,222.45,0.82541744]
[1693418496752,0.07331431,222.66,222.45,0.82541744]
[1693418496951,0.07331431,222.67,222.45,0.82541744]
[1693418497456,0.07331431,222.66,222.45,0.82541744]
[1693418500257,0.07331431,222.66,222.46,0.82541744]
[1693418500458,0.07331431,222.66,222.44,0.89877511]
[1693418500651,0.07331431,222.66,222.45,0.82541053]
[1693418501050,0.07331431,222.67,222.46,0.82541053]
[1693418501254,0.07331431,222.67,222.44,0.07335767]
[1693418501555,0.07331431,222.67,222.45,0.82539987]
[1693418502153,0.07331431,222.66,222.45,0.82539987]
[1693418510357,0.07331431,222.66,222.45,0.89875754]
[1693418510561,0.07331431,222.66,222.46,0.82539987]
[1693418515260,0.07331431,222.66,222.46,0.89875754]
[1693418515461,0.07331431,222.66,222.47,0.82539987]
[1693418516266,0.07331431,222.66,222.46,0.82539987]
[1693418516466,0.07331431,222.66,222.47,0.82539949]
[1693418516666,0.07331431,222.66,222.45,0.07335767]
[1693418516867,0.07331431,222.66,222.46,0.82539858]
[1693418530472,0.07331431,222.65,222.46,0.82539858]
[1693418536577,0.14662862,222.68,222.46,0.82539858]
[1693418536578,0.07331431,222.66,222.46,0.82539858]
[1693418536880,0.07331431,222.65,222.46,0.82539858]
[1693418562387,2.4438103,222.79,222.46,0.82539858]
[1693418562591,0.07361018,222.65,222.45,0.07368277]
[1693418562889,0.07361018,222.65,222.46,0.82541992]
[1693418563792,0.07361018,222.66,222.46,0.89910269]
[1693418563993,0.07361018,222.66,222.47,0.82541992]
[1693418564993,0.07361018,222.67,222.47,0.82541992]
[1693418565198,0.07361018,222.66,222.47,0.82541992]
[1693418565895,0.07361018,222.67,222.47,0.82541992]
[1693418566994,0.07361018,222.67,222.45,0.07368277]
[1693418567295,0.07361018,222.67,222.46,0.89906447]
[1693418567497,0.07361018,222.67,222.47,0.8253817]
[1693418568390,0.07361018,222.67,222.46,0.89906447]
[1693418568590,0.07361018,222.67,222.47,0.82537946]
[1693418569395,0.07361018,222.67,222.45,0.07368277]
[1693418569595,0.07361018,222.67,222.46,0.82537906]
[1693418569789,0.07361018,222.67,222.46,0.89906183]
[1693418569994,0.07361018,222.68,222.47,0.82537906]
[1693418572190,0.07361018,222.68,222.46,0.82537906]
[1693418572393,0.07361018,222.68,222.47,0.82536279]
[1693418572694,0.07361018,222.68,222.45,0.07368277]
[1693418572996,0.07361018,222.68,222.46,0.82536276]
[1693418575096,0.07361018,222.68,222.46,0.89904553]
[1693418575296,0.07361018,222.69,222.47,0.82536276]
[1693418576200,0.07361018,222.69,222.48,0.82536276]
[1693418576400,0.07361018,222.69,222.45,0.07368277]
[1693418576600,0.07361018,222.69,222.46,0.82534279]
[1693418590915,0.07361018,222.68,222.46,0.82534279]
[1693418591116,0.07361018,222.69,222.46,0.89902556]
[1693418591318,0.07361018,222.69,222.47,0.82534279]
[1693418592217,0.07361018,222.7,222.47,0.82534279]
[1693418592813,0.07361018,222.69,222.47,0.82534279]
[1693418593517,0.07361018,222.7,222.47,0.82534279]
[1693418594319,0.07361018,222.69,222.47,0.82534279]
[1693418596915,0.07361018,222.69,222.47,0.89902556]
[1693418597210,0.07361018,222.69,222.48,0.82534279]